[Event "51st La Roda Open 2025"]
[Site "La Roda"]
[Date "2025.04.19"]
[Round "8.1"]
[White "Kanov, Nikola"]
[Black "Pranav Vijay"]
[Result "1/2-1/2"]
[Annotator "ChessBase"]
[ECO "B00"]
[WhiteElo "2413"]
[BlackElo "2252"]
[PlyCount "88"]
[EventDate "2025.04.15"]
[EventType "swiss"]
[EventCountry "ESP"]
[SourceTitle "playchess.com"]
[Source "ChessBase"]
[SourceQuality "1"]
[TimeControl "5400+30"]

1. e4 {[%emt 0:00:02]} Nc6 {[%emt 0:00:07]} 2. Nf3 {[%emt 0:00:52]} d6 {[%emt 0:00:07]} 3. d4 {[%emt 0:09:30]} Nf6 {[%emt 0:00:22]} 4. d5 {[%emt 0:02:31]} Nb8 {[%emt 0:00:17]} 5. Nc3 {[%emt 0:00:39]} g6 {[%emt 0:00:45]} 6. Be3 {[%emt 0:02:46]} Bg7 {[%emt 0:00:40]} 7. h3 {[%emt 0:05:30]} c6 {[%emt 0:02:37]} 8. dxc6 {[%emt 0:09:02]} Nxc6 {[%emt 0:00:16]} 9. Qd2 {[%emt 0:00:19]} O-O {[%emt 0:03:49]} 10. Bd3 {[%emt 0:07:55]} d5 {[%emt 0:14:39]} 11. exd5 {[%emt 0:01:09]} Nxd5 {[%emt 0:00:09]} 12. Bh6 {[%emt 0:01:35]} Ndb4 {[%emt 0:05:59]} 13. Bxg7 {[%emt 0:02:25]} Kxg7 {[%emt 0:00:09]} 14. O-O-O {[%emt 0:02:48]} Nxd3+ {[%emt 0:00:16]} 15. Qxd3 {[%emt 0:00:14]} Qxd3 {[%emt 0:00:07]} 16. Rxd3 {[%emt 0:00:13]} Bf5 {[%emt 0:00:06]} 17. Rd2 {[%emt 0:02:05]} Rad8 {[%emt 0:07:31]} 18. Rhd1 {[%emt 0:04:21]} Rxd2 {[%emt 0:02:07]} 19. Rxd2 {[%emt 0:00:43]} e5 {[%emt 0:01:10]} 20. Nb5 {[%emt 0:05:43]} b6 {[%emt 0:14:42]} 21. Nd6 {[%emt 0:02:20]} Bc8 {[%emt 0:00:12]} 22. Nxc8 {[%emt 0:07:10]} Rxc8 {[%emt 0:00:02]} 23. b3 {[%emt 0:01:20]} Kf6 {[%emt 0:01:00]} 24. Kb2 {[%emt 0:00:35]} h6 {[%emt 0:00:43]} 25. Rd6+ {[%emt 0:01:58]} Ke7 {[%emt 0:00:08]} 26. Rd5 {[%emt 0:00:33]} f6 {[%emt 0:04:15]} 27. a3 {[%emt 0:00:20]} Ke6 {[%emt 0:00:57]} 28. c4 {[%emt 0:01:20]} Ne7 {[%emt 0:00:27]} 29. Rd1 {[%emt 0:01:25]} Nf5 {[%emt 0:01:02]} 30. a4 {[%emt 0:07:47]} Nd6 {[%emt 0:00:59]} 31. Re1 {[%emt 0:00:40]} Kf7 {[%emt 0:03:55]} 32. Rd1 {[%emt 0:01:52]} Ke7 {[%emt 0:00:07]} 33. Re1 {[%emt 0:00:07]} Rd8 {[%emt 0:00:53]} 34. Kc3 {[%emt 0:00:30]} a5 {[%emt 0:07:33]} 35. Nd4 {[%emt 0:01:13]} Kf7 {[%emt 0:03:57]} 36. Nb5 {[%emt 0:01:41]} Nb7 {[%emt 0:00:08]} 37. Nc7 {[%emt 0:00:35]} Rd4 {[%emt 0:07:02]} 38. Nd5 {[%emt 0:01:47]} Nc5 {[%emt 0:00:02]} 39. Kc2 {[%emt 0:00:22]} Ke6 {[%emt 0:07:05]} 40. Nxb6 {[%emt 0:04:53]} Nd3 {[%emt 0:00:07]} 41. Rd1 {[%emt 0:01:27]} Nb4+ {[%emt 0:04:03]} 42. Kc1 {[%emt 0:00:02]} Na2+ {[%emt 0:03:19]} 43. Kc2 {[%emt 0:00:02]} Nb4+ {[%emt 0:00:07]} 44. Kc1 {[%emt 0:00:06]} Na2+ {[%emt 0:08:32]} 1/2-1/2

[Event "51st La Roda Open 2025"]
[Site "La Roda"]
[Date "2025.04.19"]
[Round "8.2"]
[White "Gumularz, Szymon"]
[Black "Leiva Raya, Nicolas"]
[Result "1-0"]
[Annotator "TA"]
[ECO "B44"]
[WhiteElo "2604"]
[BlackElo "1831"]
[PlyCount "71"]
[EventDate "2025.04.15"]
[EventType "swiss"]
[EventCountry "ESP"]
[SourceTitle "playchess.com"]
[Source "ChessBase"]
[SourceQuality "1"]
[TimeControl "5400+30"]

{[%evp 10,71,10,11,66,73,80,66,97,89,97,101,152,152,156,134,166,164,166,121,121,44,39,8,15,21,41,20,125,116,98,64,72,47,172,176,316,306,319,298,308,159,156,157,146,145,145,143,140,143,157,157,224,218,356,352,349,337,707,683,991,988,2431,1337]} 1. c4 {[%emt 0:00:03]} Nf6 {[%emt 0:00:08]} 2. Nc3 {[%emt 0:00:06]} e6 {[%emt 0:00:17]} 3. e4 {[%emt 0:00:07]} c5 {[%emt 0:00:05]} 4. Nf3 {[%emt 0:00:35]} Nc6 {[%emt 0:00:22]} 5. d4 {[%emt 0:00:08]} cxd4 {[%emt 0:00:34]} 6. Nxd4 {[%emt 0:00:05]} Nxd4 {[%emt 0:00:25] B44: Sicilian: Taimanov: 5 Nb5.} (6... Bc5 $11 7. Nc2 Qb6) 7. Qxd4 $14 {[%emt 0:00:07]} b6 {[%emt 0:03:52]} 8. e5 {[%emt 0:02:27][%cal Oc1g5]} Bc5 {[%emt 0:00:36] White is slightly better.} 9. Qf4 {[%emt 0:00:39][%cal Of4f3]} Ng8 {[%emt 0:02:49]} 10. Qg3 {[%emt 0:01:23]} g6 {[%emt 0:01:18]} (10... Kf8 $142) 11. Bg5 $16 {[%emt 0:01:25]} Qc7 $146 {[%emt 0:02:17] Black is weak on the light squares} (11... Ne7 12. Bf6 O-O 13. O-O-O Qe8 14. h4 Nf5 15. Qf3 Nd4 16. Qxa8 Nc6 17. Nb5 Be7 18. Nxa7 Nxa7 19. Bxe7 Qxe7 20. Qxa7 {1-0 Raphael,A-Boettner,J CT Queen 21832 2019}) 12. O-O-O {[%emt 0:00:49]} h6 {[%emt 0:02:08] Against h4} 13. Nb5 {[%emt 0:02:09]} Qc6 {[%emt 0:01:31] A sharp opening} 14. Be3 {[%emt 0:10:07]} Ba6 {[%emt 0:01:17] [#] and ...Bxe3+ should not be overlooked} 15. Bxc5 {[%emt 0:16:07]} (15. Kb1 $1 $16) 15... Bxb5 $1 $14 {[%emt 0:00:35]} 16. Ba3 {[%emt 0:00:16]} (16. cxb5 {simplifies} Qxc5+ 17. Kb1 Ne7 18. Bd3) 16... Bxc4 {[%emt 0:03:21]} 17. Bxc4 {[%emt 0:00:13]} Qxc4+ {[%emt 0:00:37]} 18. Kb1 {[%emt 0:00:03]} Ne7 {[%emt 0:09:03]} (18... Qe4+ $11 {remains equal.} 19. Ka1 Ne7) 19. Qf3 $36 {[%emt 0:00:20][%mdl 3072] White has strong compensation. White is in control.} Nc6 {[%emt 0:02:35]} 20. b3 {[%emt 0:09:55]} Qb5 {[%emt 0:03:23][%cal Oa7a5]} 21. Rhe1 {[%emt 0:03:59] White is much more active. The black rooks are passive.} O-O-O {[%emt 0:06:57] This move loses the game for Black.} ({Better is} 21... a5 $14) 22. Bd6 $18 {[%emt 0:00:38]} ({Don't take} 22. Qxf7 $6 Nxe5 23. Qf6 Nc6 $14) 22... f5 {[%emt 0:05:18]} (22... g5 23. Qxf7 g4) 23. exf6 {[%emt 0:03:57][%cal Oe1e5] and Re5! should not be overlooked} Qf5+ {[%emt 0:00:12]} 24. Qxf5 {[%emt 0:00:09]} gxf5 {[%emt 0:00:04]} 25. f7 {[%emt 0:00:26]} (25. b4 $18) 25... Rhf8 {[%emt 0:00:21]} 26. Bxf8 {[%emt 0:00:10]} Rxf8 $16 {[%emt 0:00:03][%mdl 4096] Endgame KRR-KRN} 27. Rd3 {[%emt 0:00:07]} Rxf7 {[%emt 0:00:28]} 28. Rh3 {[%emt 0:00:05]} Rf6 {[%emt 0:01:30]} 29. Rg3 {[%emt 0:00:05]} Kc7 {[%emt 0:01:24]} 30. Rg7 {[%emt 0:00:07]} e5 {[%emt 0:00:40]} (30... f4 $16 {might work better.} 31. Rd1 Ne5) 31. Rd1 $18 {[%emt 0:00:13]} Rd6 {[%emt 0:00:12]} (31... Nb8 $142 32. Re7 e4) 32. Rxd6 {[%emt 0:00:12]} Kxd6 {[%emt 0:00:07]} 33. Rg6+ {[%emt 0:00:03]} Kc5 $2 {[%emt 0:00:10]} (33... Ke7 34. Rxh6 Nd8 35. Rh7+ Ke6 36. Rh6+ Ke7) 34. Rxh6 {[%emt 0:00:06] White is clearly winning.} d5 {[%emt 0:00:19][%cal Bd7d5,Bd5d4][%mdl 32]} 35. h4 {[%emt 0:00:05]} d4 {[%emt 0:00:11] [#]} 36. Rxc6+ $1 {[%emt 0:01:28][%mdl 512] Weighted Error Value: White=0.17 (very precise) /Black=0.65  Mistake:       	White=2     	Black=7      Inaccurate:     	White=2     	Black=2      OK:         	White=13    	Black=7      Best:        	White=4     	Black=4      Strong:       	---       	Black=1} 1-0

[Event "51st La Roda Open 2025"]
[Site "La Roda"]
[Date "2025.04.19"]
[Round "8.3"]
[White "Santos, Antonio P"]
[Black "Albornoz Cabrera, Carlos Daniel"]
[Result "0-1"]
[Annotator "TA"]
[ECO "E04"]
[WhiteElo "2152"]
[BlackElo "2561"]
[PlyCount "82"]
[EventDate "2025.04.15"]
[EventType "swiss"]
[EventCountry "ESP"]
[SourceTitle "playchess.com"]
[Source "ChessBase"]
[SourceQuality "1"]
[TimeControl "5400+30"]

{[%evp 13,82,25,25,-3,18,0,0,13,3,4,2,-31,-31,-26,-13,-18,-11,-77,-76,-104,-87,-99,-101,-99,-108,-104,-81,-75,-73,-81,-81,-87,-77,-72,-95,-76,-101,-86,-102,-134,-121,-184,-179,-295,-303,-303,-292,-406,-397,-404,-426,-429,-454,-446,-388,-402,-422,-408,-405,-450,-414,-465,-466,-458,-468,-519,-510,-570,-555,-595,-585]} 1. d4 {[%emt 0:01:46]} Nf6 {[%emt 0:00:02]} 2. c4 {[%emt 0:00:10]} e6 {[%emt 0:00:05]} 3. Nf3 {[%emt 0:00:10]} d5 {[%emt 0:00:07]} 4. g3 {[%emt 0:00:14]} dxc4 {[%emt 0:00:19]} 5. Bg2 {[%emt 0:00:35]} Nc6 {[%emt 0:00:05]} 6. Qa4 {[%emt 0:03:06]} Bb4+ {[%emt 0:00:23]} 7. Bd2 {[%emt 0:00:11]} Nd5 {[%emt 0:00:06]} 8. O-O {[%emt 0:10:37] E04: Open Catalan: 5 Nf3.} Bxd2 {[%emt 0:00:28]} 9. Nfxd2 {[%emt 0:03:39]} O-O {[%emt 0:02:17]} 10. e3 {[%emt 0:01:36] White sacrificed a pawn. The position is equal.} Nb6 {[%emt 0:16:10]} 11. Qc2 {[%emt 0:01:09]} e5 {[%emt 0:02:00]} 12. dxe5 {[%emt 0:12:42]} Nxe5 {[%emt 0:01:39]} 13. Na3 $146 {[%emt 0:00:17][%cal Ra3c4]} (13. b3 Qd3 14. Qb2 Re8 15. Be4 Qd6 16. bxc4 Bh3 17. Rc1 Rad8 18. f4 Nexc4 19. Nxc4 Nxc4 {0-1 Sevcik,M (2201)-Pacher,M (2388) SVK-chT 2324 2023 (6.5)}) 13... Qd3 {[%emt 0:16:46]} 14. Rfc1 {[%emt 0:36:48][%cal Ra3c4]} Bf5 {[%emt 0:10:38]} 15. e4 {[%emt 0:00:33]} (15. Qxd3 $11 Nxd3 16. Rc2) 15... Be6 $17 {[%emt 0:01:53] Black has more active pieces.} 16. Qxd3 {[%emt 0:12:05]} Nxd3 {[%emt 0:00:10]} 17. Rc2 {[%emt 0:00:02][%cal Rd2c4]} Nb4 {[%emt 0:01:06]} 18. Rc3 {[%emt 0:08:02][%cal Rd2c4]} Na4 {[%emt 0:00:57][%csl LRb2,LRc3]} 19. Rcc1 {[%emt 0:00:09]} Nxb2 {[%emt 0:04:28]} 20. Ndxc4 {[%emt 0:00:16]} Nxc4 {[%emt 0:00:45]} 21. Nxc4 {[%emt 0:00:07]} b6 {[%emt 0:01:06]} 22. Ne5 {[%emt 0:03:13]} c5 {[%emt 0:08:15]} 23. a3 {[%emt 0:00:21] [#]} Na6 {[%emt 0:00:02]} ({Of course not} 23... Na2 $6 24. Rc2 $11) 24. f4 {[%emt 0:02:24]} Rac8 $36 {[%emt 0:02:37][%mdl 2048] Keeping White busy.} 25. Bf1 {[%emt 0:01:14]} Nb8 {[%emt 0:00:39]} 26. f5 {[%emt 0:00:51]} Bb3 {[%emt 0:01:27]} 27. Bc4 {[%emt 0:00:27]} (27. Bb5 $17) 27... Rfe8 $19 {[%emt 0:03:58]} 28. Nxf7 {[%emt 0:00:16]} (28. Bxb3 {was called for.} Rxe5 29. Bd5) 28... Bxc4 {[%emt 0:00:11]} 29. Nd6 {[%emt 0:00:02]} Bd3 {[%emt 0:00:33][%cal Oc8d8]} 30. e5 {[%emt 0:01:54]} Rcd8 {[%emt 0:00:37]} 31. Nxe8 {[%emt 0:00:10]} Rxe8 {[%emt 0:00:01]} 32. g4 {[%emt 0:00:14]} Rxe5 {[%emt 0:00:32]} 33. Re1 {[%emt 0:00:02]} Nc6 {[%emt 0:00:10]} 34. Rxe5 {[%emt 0:00:06]} Nxe5 {[%emt 0:00:01]} 35. h3 {[%emt 0:00:23] [#]} h5 $1 {[%emt 0:01:19]} 36. Kf2 {[%emt 0:00:26]} (36. gxh5 Bxf5) 36... hxg4 {[%emt 0:01:50]} 37. Re1 {[%emt 0:00:03]} g3+ {[%emt 0:01:40] Black is clearly winning.} 38. Kxg3 {[%emt 0:00:08]} Nc6 {[%emt 0:00:33]} 39. Kf4 {[%emt 0:00:11]} c4 {[%emt 0:00:21]} 40. Re6 {[%emt 0:00:08]} Nd4 {[%emt 0:00:40][%csl LRe6,LRf5]} 41. Re7 {[%emt 0:00:15]} c3 {[%emt 0:01:00] Weighted Error Value: White=0.25 (precise) /Black=0.05 (flawless)   Mistake:       	White=3     	---        Inaccurate:     	White=4     	---        OK:         	White=15    	Black=18     Best:        	White=2     	Black=5} 0-1

[Event "51st La Roda Open 2025"]
[Site "La Roda"]
[Date "2025.04.19"]
[Round "8.4"]
[White "Lopez Martinez, Josep Manuel"]
[Black "Fier, Alexandr"]
[Result "1/2-1/2"]
[Annotator "RC"]
[ECO "D24"]
[WhiteElo "2460"]
[BlackElo "2534"]
[PlyCount "44"]
[EventDate "2025.04.15"]
[EventType "swiss"]
[EventCountry "ESP"]
[SourceTitle "playchess.com"]
[Source "ChessBase"]
[SourceQuality "1"]
[TimeControl "5400+30"]

1. Nf3 {[%emt 0:03:38]} d5 {[%emt 0:00:31]} 2. d4 {[%emt 0:01:16]} Nf6 {[%emt 0:00:04]} 3. c4 {[%emt 0:00:36]} e6 {[%emt 0:00:19]} 4. Nc3 {[%emt 0:00:34]} dxc4 {[%emt 0:00:04]} 5. e3 {[%emt 0:00:23]} a6 {[%emt 0:00:03]} 6. a4 {[%emt 0:00:08]} b6 {[%emt 0:00:35]} 7. Bxc4 {[%emt 0:00:17]} Bb7 {[%emt 0:00:03]} 8. O-O {[%emt 0:00:55]} Bb4 {[%emt 0:00:03]} 9. Qe2 {[%emt 0:01:02]} O-O {[%emt 0:00:04]} 10. Na2 {[%emt 0:20:49]} Bd6 {[%emt 0:00:28]} 11. Nc3 {[%emt 0:00:17]} c5 {[%emt 0:03:12]} 12. Rd1 {[%emt 0:06:24]} Nbd7 {[%emt 0:02:39]} 13. h3 {[%emt 0:06:20]} Qc7 {[%emt 0:02:03]} 14. d5 {[%emt 0:05:19]} exd5 {[%emt 0:02:44]} 15. Nxd5 {[%emt 0:00:08]} Nxd5 {[%emt 0:00:02]} 16. Bxd5 {[%emt 0:00:11]} Bxd5 {[%emt 0:00:03]} 17. Rxd5 {[%emt 0:00:12]} Nf6 {[%emt 0:00:03]} 18. Rd1 {[%emt 0:00:32]} c4 {[%emt 0:07:54]} 19. Bd2 {[%emt 0:01:16]} Ne4 {[%emt 0:06:30]} 20. Be1 {[%emt 0:01:20]} b5 {[%emt 0:01:58]} 21. axb5 {[%emt 0:11:54]} axb5 {[%emt 0:00:12]} 22. Nd4 {[%emt 0:00:09]} Rxa1 {[%emt 0:05:04]} 1/2-1/2

[Event "51st La Roda Open 2025"]
[Site "La Roda"]
[Date "2025.04.19"]
[Round "8.5"]
[White "Sierra Vallina, Lionel"]
[Black "Suleymenov, Alisher"]
[Result "1/2-1/2"]
[Annotator "RC"]
[ECO "B30"]
[WhiteElo "2342"]
[BlackElo "2478"]
[PlyCount "282"]
[EventDate "2025.04.15"]
[EventType "swiss"]
[EventCountry "ESP"]
[SourceTitle "playchess.com"]
[Source "ChessBase"]
[SourceQuality "1"]
[TimeControl "5400+30"]

1. e4 {[%emt 0:00:03]} c5 {[%emt 0:00:07]} 2. Nf3 {[%emt 0:00:12]} Nc6 {[%emt 0:00:04]} 3. Bb5 {[%emt 0:00:10]} e6 {[%emt 0:00:05]} 4. O-O {[%emt 0:00:33]} Nd4 {[%emt 0:00:05]} 5. Nxd4 {[%emt 0:00:46]} cxd4 {[%emt 0:00:07]} 6. c3 {[%emt 0:08:38]} a6 {[%emt 0:01:24]} 7. Be2 {[%emt 0:05:15]} Bc5 {[%emt 0:01:16]} 8. b4 {[%emt 0:04:07]} Ba7 {[%emt 0:00:06]} 9. Bb2 {[%emt 0:01:52]} d5 {[%emt 0:01:13]} 10. exd5 {[%emt 0:22:56]} Ne7 {[%emt 0:01:24]} 11. c4 {[%emt 0:00:27]} exd5 {[%emt 0:02:43]} 12. c5 {[%emt 0:03:52]} O-O {[%emt 0:00:52]} 13. Bxd4 {[%emt 0:05:21]} Nc6 {[%emt 0:09:34]} 14. Bb2 {[%emt 0:00:41]} Nxb4 {[%emt 0:02:21]} 15. d4 {[%emt 0:00:45]} b6 {[%emt 0:03:51]} 16. cxb6 {[%emt 0:06:21]} Qxb6 {[%emt 0:00:54]} 17. Nd2 {[%emt 0:02:44]} Qg6 {[%emt 0:04:57]} 18. Nb3 {[%emt 0:08:36]} Bh3 {[%emt 0:03:26]} 19. Bf3 {[%emt 0:00:05]} Nd3 {[%emt 0:08:02]} 20. Bc1 {[%emt 0:01:59]} Rad8 {[%emt 0:03:08]} 21. Qd2 {[%emt 0:02:23]} h6 {[%emt 0:08:37]} 22. Ba3 {[%emt 0:07:23]} Rfe8 {[%emt 0:00:06]} 23. Rad1 {[%emt 0:05:01]} Bf5 {[%emt 0:00:27]} 24. Nc1 {[%emt 0:00:26]} Nxc1 {[%emt 0:07:04]} 25. Rxc1 {[%emt 0:01:43]} Bd3 {[%emt 0:00:06]} 26. Rfe1 {[%emt 0:05:19]} Bxd4 {[%emt 0:10:36]} 27. Be7 {[%emt 0:00:37]} Rb8 {[%emt 0:02:14]} 28. Qf4 {[%emt 0:00:31]} Qb6 {[%emt 0:03:09]} 29. Bxd5 {[%emt 0:00:47]} Bg6 {[%emt 0:05:21]} 30. h3 {[%emt 0:00:16]} Rbc8 {[%emt 0:01:20]} 31. Rxc8 {[%emt 0:00:56]} Rxc8 {[%emt 0:00:01]} 32. Bh4 {[%emt 0:00:41]} Qa5 {[%emt 0:02:40]} 33. Rd1 {[%emt 0:00:39]} Qxd5 {[%emt 0:00:06]} 34. Qxd4 {[%emt 0:00:47]} Qxa2 {[%emt 0:00:39]} 35. Ra1 {[%emt 0:01:12]} Qc4 {[%emt 0:01:57]} 36. Qxc4 {[%emt 0:00:39]} Rxc4 {[%emt 0:00:01]} 37. Be7 {[%emt 0:00:49]} Bd3 {[%emt 0:01:05]} 38. Ra5 {[%emt 0:00:52]} Rc1+ {[%emt 0:02:43]} 39. Kh2 {[%emt 0:00:01]} Rc2 {[%emt 0:01:46]} 40. Bc5 {[%emt 0:00:33]} Bb5 {[%emt 0:00:14]} 41. Be3 {[%emt 0:00:10]} f5 {[%emt 0:01:45]} 42. g3 {[%emt 0:02:54]} Kf7 {[%emt 0:03:56]} 43. h4 {[%emt 0:00:30]} g5 {[%emt 0:04:17]} 44. hxg5 {[%emt 0:00:05]} hxg5 {[%emt 0:00:01]} 45. Ra1 {[%emt 0:01:33]} g4 {[%emt 0:00:25]} 46. Kg1 {[%emt 0:00:28]} Ke6 {[%emt 0:01:12]} 47. Bb6 {[%emt 0:00:34]} Rc8 {[%emt 0:01:56]} 48. Kg2 {[%emt 0:00:37]} Rh8 {[%emt 0:01:25]} 49. Ra2 {[%emt 0:00:35]} Rb8 {[%emt 0:02:04]} 50. Be3 {[%emt 0:00:33]} Bd3 {[%emt 0:00:22]} 51. f3 {[%emt 0:00:17]} Bc4 {[%emt 0:00:24]} 52. Ra4 {[%emt 0:00:36]} Rb2+ {[%emt 0:00:14]} 53. Bf2 {[%emt 0:00:35]} Bb5 {[%emt 0:01:56]} 54. Ra1 {[%emt 0:00:24]} Bc6 {[%emt 0:01:02]} 55. Rxa6 {[%emt 0:00:10]} Kd7 {[%emt 0:00:10]} 56. Ra7+ {[%emt 0:00:29]} Kd6 {[%emt 0:00:10]} 57. Ra1 {[%emt 0:00:39]} gxf3+ {[%emt 0:01:02]} 58. Kg1 {[%emt 0:00:26]} Be4 {[%emt 0:00:30]} 59. Rd1+ {[%emt 0:00:09]} Ke6 {[%emt 0:00:12]} 60. Kf1 {[%emt 0:00:29]} Rc2 {[%emt 0:00:27]} 61. Kg1 {[%emt 0:01:00]} Ra2 {[%emt 0:00:40]} 62. Kf1 {[%emt 0:00:11]} Kf7 {[%emt 0:00:04]} 63. Kg1 {[%emt 0:00:28]} Kg6 {[%emt 0:00:36]} 64. Kf1 {[%emt 0:00:07]} Kh5 {[%emt 0:00:09]} 65. Kg1 {[%emt 0:00:27]} Kg4 {[%emt 0:00:19]} 66. Kf1 {[%emt 0:02:06]} Ra8 {[%emt 0:00:55]} 67. Kg1 {[%emt 0:00:00]} Kh3 {[%emt 0:00:21]} 68. Re1 {[%emt 0:00:00]} Rg8 {[%emt 0:00:30]} 69. Re3 {[%emt 0:00:09]} Bd5 {[%emt 0:01:08]} 70. Re5 {[%emt 0:01:04]} Be4 {[%emt 0:00:19]} 71. Rc5 {[%emt 0:00:25]} Rd8 {[%emt 0:00:38]} 72. Rc1 {[%emt 0:00:13]} f4 {[%emt 0:00:30]} 73. gxf4 {[%emt 0:00:25]} Rg8+ {[%emt 0:00:05]} 74. Kf1 {[%emt 0:00:01]} Bd3+ {[%emt 0:00:51]} 75. Ke1 {[%emt 0:00:00]} Re8+ {[%emt 0:01:01]} 76. Kd1 {[%emt 0:00:34]} Kg2 {[%emt 0:00:22]} 77. Bc5 {[%emt 0:00:28]} Re2 {[%emt 0:00:37]} 78. Rc3 {[%emt 0:00:23]} Bf5 {[%emt 0:00:05]} 79. Kc1 {[%emt 0:00:53]} Re8 {[%emt 0:00:50]} 80. Kb2 {[%emt 0:00:23]} Rb8+ {[%emt 0:00:15]} 81. Rb3 {[%emt 0:00:23]} Rc8 {[%emt 0:00:08]} 82. Rc3 {[%emt 0:00:24]} Rb8+ {[%emt 0:00:28]} 83. Rb3 {[%emt 0:00:05]} Rd8 {[%emt 0:01:03]} 84. Rc3 {[%emt 0:00:24]} f2 {[%emt 0:00:20]} 85. Bxf2 {[%emt 0:00:05]} Kxf2 {[%emt 0:00:01]} 86. Rc5 {[%emt 0:00:32]} Rf8 {[%emt 0:00:11]} 87. Re5 {[%emt 0:00:06]} Kf3 {[%emt 0:00:08]} 88. Kc3 {[%emt 0:00:09]} Be4 {[%emt 0:00:23]} 89. Kd4 {[%emt 0:00:16]} Rd8+ {[%emt 0:00:08]} 90. Kc5 {[%emt 0:00:05]} Kxf4 {[%emt 0:00:13]} 91. Rh5 {[%emt 0:00:11]} Bf5 {[%emt 0:00:56]} 92. Kc6 {[%emt 0:00:52]} Ke5 {[%emt 0:00:06]} 93. Kc5 {[%emt 0:00:25]} Rc8+ {[%emt 0:00:04]} 94. Kb5 {[%emt 0:00:21]} Rc1 {[%emt 0:00:47]} 95. Rg5 {[%emt 0:00:10]} Ke6 {[%emt 0:00:51]} 96. Kb4 {[%emt 0:00:06]} Be4 {[%emt 0:00:22]} 97. Rc5 {[%emt 0:01:41]} Rb1+ {[%emt 0:00:04]} 98. Kc3 {[%emt 0:00:08]} Bd5 {[%emt 0:00:11]} 99. Kd4 {[%emt 0:00:43]} Rd1+ {[%emt 0:00:45]} 100. Ke3 {[%emt 0:00:10]} Ke5 {[%emt 0:02:24]} 101. Rc8 {[%emt 0:05:16]} Ra1 {[%emt 0:00:16]} 102. Re8+ {[%emt 0:00:00]} Be6 {[%emt 0:00:00]} 103. Re7 {[%emt 0:00:00]} Ra8 {[%emt 0:00:52]} 104. Ke2 {[%emt 0:00:00]} Kd5 {[%emt 0:00:42]} 105. Ke3 {[%emt 0:00:00]} Ra1 {[%emt 0:00:37]} 106. Re8 {[%emt 0:00:00]} Re1+ {[%emt 0:00:23]} 107. Kd2 {[%emt 0:00:00]} Re5 {[%emt 0:00:33]} 108. Rh8 {[%emt 0:00:00]} Re4 {[%emt 0:00:47]} 109. Kd3 {[%emt 0:00:00]} Bf5 {[%emt 0:00:21]} 110. Rd8+ {[%emt 0:00:00]} Kc5 {[%emt 0:00:13]} 111. Kd2 {[%emt 0:00:14]} Be6 {[%emt 0:00:15]} 112. Kd3 {[%emt 0:00:12]} Re5 {[%emt 0:02:22]} 113. Rh8 {[%emt 0:01:23]} Bc4+ {[%emt 0:00:00]} 114. Kd2 {[%emt 0:00:28]} Kb4 {[%emt 0:00:00]} 115. Rh2 {[%emt 0:00:19]} Re4 {[%emt 0:00:00]} 116. Rg2 {[%emt 0:00:08]} Kc5 {[%emt 0:00:05]} 117. Rg7 {[%emt 0:00:08]} Kd4 {[%emt 0:01:08]} 118. Rd7+ {[%emt 0:00:05]} Bd5 {[%emt 0:00:03]} 119. Rd8 {[%emt 0:00:06]} Rg4 {[%emt 0:00:24]} 120. Rd7 {[%emt 0:00:04]} Rg2+ {[%emt 0:01:08]} 121. Kd1 {[%emt 0:00:06]} Ke4 {[%emt 0:00:42]} 122. Kc1 {[%emt 0:00:04]} Rg5 {[%emt 0:00:35]} 123. Kc2 {[%emt 0:00:12]} Rg3 {[%emt 0:00:29]} 124. Kd2 {[%emt 0:00:44]} Rd3+ {[%emt 0:00:05]} 125. Ke2 {[%emt 0:00:05]} Ra3 {[%emt 0:00:10]} 126. Kd2 {[%emt 0:00:41]} Kd4 {[%emt 0:00:28]} 127. Rd8 {[%emt 0:00:08]} Ra5 {[%emt 0:00:37]} 128. Rd7 {[%emt 0:00:12]} Ra2+ {[%emt 0:01:08]} 129. Kd1 {[%emt 0:00:05]} Ke4 {[%emt 0:00:08]} 130. Kc1 {[%emt 0:00:16]} Bc4 {[%emt 0:00:11]} 131. Rd2 {[%emt 0:00:40]} Ra8 {[%emt 0:00:28]} 132. Kb2 {[%emt 0:00:18]} Bd3 {[%emt 0:00:09]} 133. Rh2 {[%emt 0:00:27]} Kd4 {[%emt 0:00:21]} 134. Rh4+ {[%emt 0:00:20]} Be4 {[%emt 0:00:05]} 135. Kb3 {[%emt 0:00:14]} Rb8+ {[%emt 0:00:36]} 136. Ka4 {[%emt 0:00:07]} Kd5 {[%emt 0:00:48]} 137. Ka3 {[%emt 0:00:07]} Bd3 {[%emt 0:00:32]} 138. Rb4 {[%emt 0:00:06]} Ra8+ {[%emt 0:00:04]} 139. Kb2 {[%emt 0:00:05]} Bc4 {[%emt 0:00:13]} 140. Rb7 {[%emt 0:00:17]} Kd4 {[%emt 0:00:05]} 141. Rd7+ {[%emt 0:00:51]} Ke5 {[%emt 0:03:48]} 1/2-1/2

[Event "51st La Roda Open 2025"]
[Site "La Roda"]
[Date "2025.04.19"]
[Round "8.6"]
[White "Hernandez Leon, Alberto"]
[Black "Yordanov, Lachezar"]
[Result "1/2-1/2"]
[Annotator "RC"]
[ECO "E11"]
[WhiteElo "2174"]
[BlackElo "2364"]
[PlyCount "34"]
[EventDate "2025.04.15"]
[EventType "swiss"]
[EventCountry "ESP"]
[SourceTitle "playchess.com"]
[Source "ChessBase"]
[SourceQuality "1"]
[TimeControl "5400+30"]

1. d4 {[%emt 0:00:03]} Nf6 {[%emt 0:07:18]} 2. c4 {[%emt 0:00:16]} e6 {[%emt 0:00:06]} 3. Nf3 {[%emt 0:00:14]} d5 {[%emt 0:00:05]} 4. g3 {[%emt 0:00:14]} Bb4+ {[%emt 0:00:08]} 5. Bd2 {[%emt 0:00:17]} Be7 {[%emt 0:00:07]} 6. Bg2 {[%emt 0:00:18]} O-O {[%emt 0:00:09]} 7. O-O {[%emt 0:00:19]} Nbd7 {[%emt 0:00:29]} 8. Qc2 {[%emt 0:02:38]} c6 {[%emt 0:01:06]} 9. Rc1 {[%emt 0:00:47]} a5 {[%emt 0:02:00]} 10. a3 {[%emt 0:00:35]} Ne4 {[%emt 0:16:42]} 11. Be1 {[%emt 0:00:22]} f5 {[%emt 0:02:13]} 12. e3 {[%emt 0:00:35]} g5 {[%emt 0:04:23]} 13. Nfd2 {[%emt 0:04:52]} Ndf6 {[%emt 0:13:29]} 14. Nc3 {[%emt 0:05:22]} Bd7 {[%emt 0:05:04]} 15. Ndxe4 {[%emt 0:11:26]} fxe4 {[%emt 0:01:15]} 16. b4 {[%emt 0:01:28]} axb4 {[%emt 0:24:31]} 17. axb4 {[%emt 0:00:09]} Rxa1 {[%emt 0:00:28]} 1/2-1/2